[Event "XIII Mediterranean Championship 2023"]
[Site "Castell-Platja d Aro"]
[Date "2023.11.08"]
[Round "6.15"]
[White "Valle Luis, Leo"]
[Black "Mateu Guiu, Esteve"]
[Result "1-0"]
[ECO "B62"]
[WhiteElo "2216"]
[BlackElo "2075"]
[Annotator "RC"]
[PlyCount "85"]
[EventDate "2023.10.26"]
[EventType "swiss"]
[EventCountry "ESP"]
[SourceTitle "playchess.com"]
[Source "ChessBase"]
[SourceQuality "1"]
[TimeControl "5400+30"]

1. e4 {[%emt 0:00:02]} c5 {[%emt 0:00:12]} 2. Nf3 {[%emt 0:00:07]} d6 {[%emt 0:00:06]} 3. d4 {[%emt 0:00:05]} cxd4 {[%emt 0:00:09]} 4. Nxd4 {[%emt 0:00:05]} Nf6 {[%emt 0:00:06]} 5. Nc3 {[%emt 0:00:05]} Nc6 {[%emt 0:00:07]} 6. Bg5 {[%emt 0:00:04]} e6 {[%emt 0:00:06]} 7. Qd3 {[%emt 0:00:04]} Be7 {[%emt 0:01:11]} 8. O-O-O {[%emt 0:07:11]} O-O {[%emt 0:00:18]} 9. f4 {[%emt 0:05:16]} Qb6 {[%emt 0:01:23]} 10. Nb3 {[%emt 0:10:29]} Rd8 {[%emt 0:07:30]} 11. Be2 {[%emt 0:04:29]} Bd7 {[%emt 0:06:11]} 12. g4 {[%emt 0:05:28]} Rac8 {[%emt 0:06:14]} 13. Kb1 {[%emt 0:07:02]} Be8 {[%emt 0:24:39]} 14. h4 {[%emt 0:09:24]} Nb4 {[%emt 0:26:04]} 15. Qd4 {[%emt 0:02:35]} Qxd4 {[%emt 0:02:42]} 16. Nxd4 {[%emt 0:00:02]} h6 {[%emt 0:05:16]} 17. Bxf6 {[%emt 0:00:17]} Bxf6 {[%emt 0:00:11]} 18. g5 {[%emt 0:00:26]} hxg5 {[%emt 0:06:50]} 19. hxg5 {[%emt 0:00:11]} Bxd4 {[%emt 0:03:10]} 20. Rxd4 {[%emt 0:00:06]} Nc6 {[%emt 0:00:04]} 21. Rd3 {[%emt 0:00:11]} Kf8 {[%emt 0:01:51]} 22. Bg4 {[%emt 0:05:23]} Ke7 {[%emt 0:04:26]} 23. Re3 {[%emt 0:03:36]} g6 {[%emt 0:02:01]} 24. Nd5+ {[%emt 0:00:52]} Kd7 {[%emt 0:00:27]} 25. Rh7 {[%emt 0:01:05]} Ne7 {[%emt 0:00:59]} 26. Nf6+ {[%emt 0:01:11]} Kc6 {[%emt 0:00:22]} 27. Rc3+ {[%emt 0:00:51]} Kb6 {[%emt 0:00:18]} 28. Rb3+ {[%emt 0:00:07]} Kc5 {[%emt 0:00:35]} 29. Rxb7 {[%emt 0:00:41]} Nc6 {[%emt 0:00:26]} 30. c3 {[%emt 0:01:00]} Rb8 {[%emt 0:00:35]} 31. Rxb8 {[%emt 0:02:37]} Rxb8 {[%emt 0:00:05]} 32. Nxe8 {[%emt 0:00:41]} Rxe8 {[%emt 0:00:05]} 33. Rxf7 {[%emt 0:00:07]} a5 {[%emt 0:01:19]} 34. Rb7 {[%emt 0:00:49]} d5 {[%emt 0:00:40]} 35. Bf3 {[%emt 0:03:53]} Rf8 {[%emt 0:00:17]} 36. exd5 {[%emt 0:00:07]} exd5 {[%emt 0:00:06]} 37. Rd7 {[%emt 0:00:10]} Rxf4 {[%emt 0:00:30]} 38. Rxd5+ {[%emt 0:00:32]} Kb6 {[%emt 0:00:58]} 39. Be2 {[%emt 0:00:29]} Rf2 {[%emt 0:00:29]} 40. Bd3 {[%emt 0:00:21]} Rg2 {[%emt 0:00:50]} 41. Rd6 {[%emt 0:02:26]} Rxg5 {[%emt 0:00:10]} 42. Be4 {[%emt 0:00:07]} Rc5 {[%emt 0:00:20]} 43. Rxg6 {[%emt 0:00:02]} 1-0

[Event "XIII Mediterranean Championship 2023"]
[Site "Castell-Platja d Aro"]
[Date "2023.11.08"]
[Round "6.16"]
[White "De Lussac, Estephe"]
[Black "Banos, Oscar"]
[Result "0-1"]
[ECO "B33"]
[WhiteElo "2013"]
[BlackElo "2188"]
[Annotator "RC"]
[PlyCount "82"]
[EventDate "2023.10.26"]
[EventType "swiss"]
[EventCountry "ESP"]
[SourceTitle "playchess.com"]
[Source "ChessBase"]
[SourceQuality "1"]
[TimeControl "5400+30"]

1. e4 {[%emt 0:00:10]} c5 {[%emt 0:00:05]} 2. Nf3 {[%emt 0:00:20]} Nc6 {[%emt 0:00:06]} 3. d4 {[%emt 0:00:05]} cxd4 {[%emt 0:00:05]} 4. Nxd4 {[%emt 0:00:04]} Nf6 {[%emt 0:00:07]} 5. Nc3 {[%emt 0:00:03]} e5 {[%emt 0:00:06]} 6. Ndb5 {[%emt 0:00:04]} d6 {[%emt 0:00:12]} 7. Nd5 {[%emt 0:00:04]} Nxd5 {[%emt 0:00:08]} 8. exd5 {[%emt 0:00:05]} Nb8 {[%emt 0:00:08]} 9. Qf3 {[%emt 0:00:03]} a6 {[%emt 0:02:02]} 10. Qa3 {[%emt 0:00:42]} Be7 {[%emt 0:00:18]} 11. Bg5 {[%emt 0:01:48]} f6 {[%emt 0:04:45]} 12. Bd2 {[%emt 0:02:23]} O-O {[%emt 0:01:09]} 13. Be2 {[%emt 0:10:48]} b6 {[%emt 0:02:35]} 14. c4 {[%emt 0:00:23]} Bb7 {[%emt 0:21:22]} 15. Nc3 {[%emt 0:01:29]} Nd7 {[%emt 0:02:14]} 16. g4 {[%emt 0:04:40]} Nc5 {[%emt 0:11:23]} 17. Rc1 {[%emt 0:13:42]} f5 {[%emt 0:05:32]} 18. gxf5 {[%emt 0:02:12]} Rxf5 {[%emt 0:00:32]} 19. b4 {[%emt 0:00:36]} Nd7 {[%emt 0:06:11]} 20. Bg4 {[%emt 0:03:22]} Qf8 {[%emt 0:00:45]} 21. Bxf5 {[%emt 0:30:32]} Qxf5 {[%emt 0:00:52]} 22. Ne2 {[%emt 0:01:29]} b5 {[%emt 0:03:01]} 23. Ng3 {[%emt 0:09:54]} Qf7 {[%emt 0:00:27]} 24. cxb5 {[%emt 0:02:09]} axb5 {[%emt 0:01:12]} 25. Qxa8+ {[%emt 0:01:29]} Bxa8 {[%emt 0:00:06]} 26. Rc8+ {[%emt 0:00:05]} Bf8 {[%emt 0:00:41]} 27. Rxa8 {[%emt 0:00:06]} Qxd5 {[%emt 0:00:20]} 28. Ra3 {[%emt 0:01:58]} Nb6 {[%emt 0:01:08]} 29. Ke2 {[%emt 0:00:29]} Qc4+ {[%emt 0:00:31]} 30. Kf3 {[%emt 0:01:27]} Qc6+ {[%emt 0:00:50]} 31. Ke2 {[%emt 0:00:16]} Nc4 {[%emt 0:00:46]} 32. Rc1 {[%emt 0:00:52]} d5 {[%emt 0:00:48]} 33. Ra7 {[%emt 0:00:52]} h6 {[%emt 0:07:10]} 34. Bc3 {[%emt 0:06:31]} d4 {[%emt 0:01:36]} 35. Ba1 {[%emt 0:00:14]} Qd5 {[%emt 0:02:10]} 36. Rd1 {[%emt 0:01:17]} Bxb4 {[%emt 0:00:38]} 37. f3 {[%emt 0:00:05]} Nd6 {[%emt 0:01:35]} 38. Rc7 {[%emt 0:03:47]} Qxa2+ {[%emt 0:00:36]} 39. Kf1 {[%emt 0:00:10]} Qxh2 {[%emt 0:00:48]} 40. Ne2 {[%emt 0:00:24]} Nf5 {[%emt 0:00:37]} 41. Bb2 {[%emt 0:00:50]} Ne3# {[%emt 0:00:08]} 0-1

[Event "XIII Mediterranean Championship 2023"]
[Site "Castell-Platja d Aro"]
[Date "2023.11.08"]
[Round "6.17"]
[White "Clot Chico, Arnau"]
[Black "Fortuny Profitos, Jordi"]
[Result "0-1"]
[ECO "B40"]
[WhiteElo "2008"]
[BlackElo "2135"]
[Annotator "RC"]
[PlyCount "84"]
[EventDate "2023.10.26"]
[EventType "swiss"]
[EventCountry "ESP"]
[SourceTitle "playchess.com"]
[Source "ChessBase"]
[SourceQuality "1"]
[TimeControl "5400+30"]

1. e4 {[%emt 0:05:05]} c5 {[%emt 0:00:05]} 2. Nf3 {[%emt 0:00:37]} e6 {[%emt 0:00:04]} 3. g3 {[%emt 0:00:31]} Nc6 {[%emt 0:00:32]} 4. Bg2 {[%emt 0:00:12]} Nf6 {[%emt 0:01:29]} 5. Qe2 {[%emt 0:00:45]} d5 {[%emt 0:02:17]} 6. exd5 {[%emt 0:00:15]} Nxd5 {[%emt 0:00:16]} 7. O-O {[%emt 0:00:50]} Be7 {[%emt 0:01:59]} 8. c3 {[%emt 0:05:29]} O-O {[%emt 0:02:46]} 9. Na3 {[%emt 0:00:33]} Bd7 {[%emt 0:07:07]} 10. Nc2 {[%emt 0:03:59]} Bf6 {[%emt 0:01:38]} 11. Rd1 {[%emt 0:02:40]} Qc7 {[%emt 0:12:41]} 12. d4 {[%emt 0:02:54]} cxd4 {[%emt 0:01:06]} 13. Nfxd4 {[%emt 0:00:39]} Nxd4 {[%emt 0:00:33]} 14. Nxd4 {[%emt 0:00:29]} a6 {[%emt 0:03:11]} 15. c4 {[%emt 0:08:51]} Nb6 {[%emt 0:08:30]} 16. b3 {[%emt 0:05:10]} e5 {[%emt 0:08:22]} 17. Nc2 {[%emt 0:03:00]} Bc6 {[%emt 0:06:40]} 18. Bb2 {[%emt 0:10:29]} Rad8 {[%emt 0:06:28]} 19. Ne3 {[%emt 0:04:22]} Bxg2 {[%emt 0:02:52]} 20. Kxg2 {[%emt 0:01:01]} Qc6+ {[%emt 0:01:58]} 21. Kg1 {[%emt 0:02:00]} e4 {[%emt 0:04:01]} 22. Nf5 {[%emt 0:08:18]} Rfe8 {[%emt 0:05:07]} 23. Rxd8 {[%emt 0:10:13]} Rxd8 {[%emt 0:00:29]} 24. Re1 {[%emt 0:11:50]} g6 {[%emt 0:03:17]} 25. Nh6+ {[%emt 0:01:06]} Kg7 {[%emt 0:00:53]} 26. Ng4 {[%emt 0:00:35]} Bxb2 {[%emt 0:01:12]} 27. Qxb2+ {[%emt 0:00:02]} f6 {[%emt 0:00:09]} 28. Qc1 {[%emt 0:01:05]} Nd7 {[%emt 0:03:51]} 29. Qf4 {[%emt 0:01:04]} Nc5 {[%emt 0:02:30]} 30. h4 {[%emt 0:03:35]} Rd6 {[%emt 0:06:20]} 31. h5 {[%emt 0:02:20]} g5 {[%emt 0:00:39]} 32. h6+ {[%emt 0:00:33]} Kg6 {[%emt 0:01:15]} 33. Qe3 {[%emt 0:00:55]} Nd3 {[%emt 0:03:25]} 34. Re2 {[%emt 0:02:50]} f5 {[%emt 0:01:48]} 35. Nh2 {[%emt 0:00:02]} Kxh6 {[%emt 0:01:31]} 36. f4 {[%emt 0:00:54]} gxf4 {[%emt 0:00:26]} 37. gxf4 {[%emt 0:00:09]} Rg6+ {[%emt 0:00:09]} 38. Rg2 {[%emt 0:00:26]} Qc5 {[%emt 0:00:26]} 39. Nf1 {[%emt 0:00:23]} Rxg2+ {[%emt 0:00:19]} 40. Kxg2 {[%emt 0:00:03]} Qxe3 {[%emt 0:00:05]} 41. Nxe3 {[%emt 0:00:09]} Nxf4+ {[%emt 0:00:08]} 42. Kg3 {[%emt 0:00:09]} Kg5 {[%emt 0:02:56]} 0-1

[Event "XIII Mediterranean Championship 2023"]
[Site "Castell-Platja d Aro"]
[Date "2023.11.08"]
[Round "6.18"]
[White "Guillo Longares, Cecilia"]
[Black "Jimenez Fernandez, Rebeca"]
[Result "0-1"]
[ECO "D36"]
[WhiteElo "2065"]
[BlackElo "2053"]
[Annotator "RC"]
[PlyCount "105"]
[EventDate "2023.10.26"]
[EventType "swiss"]
[EventCountry "ESP"]
[SourceTitle "playchess.com"]
[Source "ChessBase"]
[SourceQuality "1"]
[TimeControl "5400+30"]

1. d4 {[%emt 0:00:03]} Nf6 {[%emt 0:00:07]} 2. c4 {[%emt 0:00:04]} e6 {[%emt 0:00:04]} 3. Nf3 {[%emt 0:00:04]} d5 {[%emt 0:00:04]} 4. Nc3 {[%emt 0:00:05]} c6 {[%emt 0:00:05]} 5. cxd5 {[%emt 0:00:19]} exd5 {[%emt 0:00:09]} 6. Qc2 {[%emt 0:00:04]} Bd6 {[%emt 0:01:03]} 7. Bg5 {[%emt 0:00:05]} O-O {[%emt 0:00:26]} 8. e3 {[%emt 0:00:03]} Nbd7 {[%emt 0:00:55]} 9. Bd3 {[%emt 0:00:15]} g6 {[%emt 0:01:29]} 10. O-O {[%emt 0:01:10]} Re8 {[%emt 0:03:04]} 11. Rae1 {[%emt 0:11:35]} Be7 {[%emt 0:06:00]} 12. h3 {[%emt 0:04:38]} Nf8 {[%emt 0:07:22]} 13. Ne5 {[%emt 0:04:01]} Ne6 {[%emt 0:01:46]} 14. f4 {[%emt 0:04:16]} c5 {[%emt 0:23:18]} 15. Bxf6 {[%emt 0:24:30]} Bxf6 {[%emt 0:00:14]} 16. f5 {[%emt 0:00:21]} Nf8 {[%emt 0:09:13]} 17. fxg6 {[%emt 0:07:40]} hxg6 {[%emt 0:04:21]} 18. Qf2 {[%emt 0:22:31]} Nh7 {[%emt 0:10:54]} 19. h4 {[%emt 0:04:32]} Be6 {[%emt 0:02:38]} 20. h5 {[%emt 0:02:59]} Bxe5 {[%emt 0:04:13]} 21. dxe5 {[%emt 0:05:44]} Qg5 {[%emt 0:03:03]} 22. hxg6 {[%emt 0:01:07]} fxg6 {[%emt 0:00:11]} 23. Qf4 {[%emt 0:00:05]} Kg7 {[%emt 0:00:47]} 24. Nb5 {[%emt 0:05:45]} Re7 {[%emt 0:03:39]} 25. Nd6 {[%emt 0:00:31]} Bg8 {[%emt 0:03:42]} 26. Qxg5 {[%emt 0:00:30]} Nxg5 {[%emt 0:00:05]} 27. Bxg6 {[%emt 0:00:29]} Kxg6 {[%emt 0:07:49]} 28. Rf6+ {[%emt 0:00:13]} Kh7 {[%emt 0:00:40]} 29. Kf2 {[%emt 0:00:42]} Ne4+ {[%emt 0:00:27]} 30. Nxe4 {[%emt 0:00:08]} dxe4 {[%emt 0:00:03]} 31. Rh1+ {[%emt 0:00:34]} Kg7 {[%emt 0:00:04]} 32. Rhh6 {[%emt 0:00:13]} Rf7 {[%emt 0:04:10]} 33. Rhg6+ {[%emt 0:00:24]} Kf8 {[%emt 0:00:11]} 34. Kg3 {[%emt 0:01:11]} Rxf6 {[%emt 0:00:25]} 35. exf6 {[%emt 0:00:32]} Kf7 {[%emt 0:01:52]} 36. Rh6 {[%emt 0:00:04]} Ke6 {[%emt 0:00:07]} 37. Kf4 {[%emt 0:00:44]} Bf7 {[%emt 0:00:05]} 38. g4 {[%emt 0:00:46]} Rg8 {[%emt 0:01:10]} 39. g5 {[%emt 0:00:03]} c4 {[%emt 0:00:25]} 40. Rh2 {[%emt 0:00:24]} b5 {[%emt 0:00:29]} 41. Rd2 {[%emt 0:00:52]} Bg6 {[%emt 0:00:25]} 42. a3 {[%emt 0:00:39]} a5 {[%emt 0:00:20]} 43. Rc2 {[%emt 0:00:24]} Rc8 {[%emt 0:00:16]} 44. Rc1 {[%emt 0:00:37]} b4 {[%emt 0:00:07]} 45. axb4 {[%emt 0:00:19]} axb4 {[%emt 0:00:04]} 46. Ra1 {[%emt 0:00:06]} c3 {[%emt 0:00:33]} 47. Ra6+ {[%emt 0:01:01]} Kd5 {[%emt 0:00:16]} 48. bxc3 {[%emt 0:00:34]} bxc3 {[%emt 0:00:05]} 49. Ra5+ {[%emt 0:00:17]} Kc4 {[%emt 0:01:00]} 50. Ra4+ {[%emt 0:00:23]} Kb3 {[%emt 0:01:09]} 51. Ra7 {[%emt 0:00:15]} c2 {[%emt 0:00:21]} 52. Rb7+ {[%emt 0:00:23]} Kc3 {[%emt 0:00:19]} 53. Ke5 {[%emt 0:01:46]} 0-1

[Event "XIII Mediterranean Championship 2023"]
[Site "Castell-Platja d Aro"]
[Date "2023.11.08"]
[Round "6.19"]
[White "Makka, Ioulia"]
[Black "Pla Almenar, Nel"]
[Result "1-0"]
[ECO "B45"]
[WhiteElo "1900"]
[BlackElo "2070"]
[Annotator "NA RC"]
[PlyCount "59"]
[EventDate "2023.10.26"]
[EventType "swiss"]
[EventCountry "ESP"]
[SourceTitle "playchess.com"]
[Source "ChessBase"]
[SourceQuality "1"]
[TimeControl "5400+30"]

1. e4 {[%emt 0:00:05]} c5 {[%emt 0:00:08]} 2. Nf3 {[%emt 0:00:09]} e6 {[%emt 0:00:06]} 3. d4 {[%emt 0:00:15]} cxd4 {[%emt 0:00:08]} 4. Nxd4 {[%emt 0:00:09]} Nf6 {[%emt 0:00:04]} 5. Nc3 {[%emt 0:00:15]} Nc6 {[%emt 0:00:06]} 6. Ndb5 {[%emt 0:02:40]} Bc5 {[%emt 0:02:06]} 7. Nd6+ {[%emt 0:02:40]} Ke7 {[%emt 0:01:00]} 8. Nxc8+ {[%emt 0:18:13]} Rxc8 {[%emt 0:00:06]} 9. Be2 {[%emt 0:03:03]} Qc7 {[%emt 0:03:26]} 10. O-O {[%emt 0:02:01]} a6 {[%emt 0:01:52]} 11. a3 {[%emt 0:05:10]} h6 {[%emt 0:05:24]} 12. Kh1 {[%emt 0:04:55]} Bd4 {[%emt 0:22:19]} 13. Bd3 {[%emt 0:09:06]} g5 {[%emt 0:02:07]} 14. f4 {[%emt 0:06:49]} gxf4 {[%emt 0:01:24]} 15. Bxf4 {[%emt 0:00:30]} Be5 {[%emt 0:00:48]} 16. Qd2 {[%emt 0:04:07]} Rcg8 {[%emt 0:13:55]} 17. Bxe5 {[%emt 0:11:20]} Qxe5 {[%emt 0:06:21]} 18. Rf4 {[%emt 0:01:56]} Rg4 {[%emt 0:04:01]} 19. Raf1 {[%emt 0:07:53]} Rxf4 {[%emt 0:00:51]} 20. Rxf4 {[%emt 0:02:50]} Rg8 {[%emt 0:05:19]} 21. Qf2 {[%emt 0:01:31]} Rg4 {[%emt 0:04:58]} 22. g3 {[%emt 0:02:04]} Rg7 {[%emt 0:04:27]} 23. Qb6 {[%emt 0:02:10]} Ng4 {[%emt 0:04:16]} 24. Qxb7 {[%emt 0:03:59]} Qh5 {[%emt 0:01:21]} 25. h4 {[%emt 0:00:25]} Nge5 {[%emt 0:00:22]} 26. Be2 {[%emt 0:02:09]} Qg6 {[%emt 0:00:26]} 27. g4 {[%emt 0:00:11]} f5 {[%emt 0:02:08]} 28. exf5 {[%emt 0:00:37]} Qf6 {[%emt 0:00:02]} 29. fxe6 {[%emt 0:01:07]} Qxf4 {[%emt 0:01:16]} 30. Nd5+ {[%emt 0:00:14]} 1-0

[Event "XIII Mediterranean Championship 2023"]
[Site "Castell-Platja d Aro"]
[Date "2023.11.08"]
[Round "6.20"]
[White "Galvan Cipriani, Viviana"]
[Black "De Lomas Busquets, Alba"]
[Result "1/2-1/2"]
[ECO "A26"]
[WhiteElo "2077"]
[BlackElo "1873"]
[Annotator "NA RC"]
[PlyCount "56"]
[EventDate "2023.10.26"]
[EventType "swiss"]
[EventCountry "ESP"]
[SourceTitle "playchess.com"]
[Source "ChessBase"]
[SourceQuality "1"]
[TimeControl "5400+30"]

1. c4 {[%emt 0:04:47]} e5 {[%emt 0:00:19]} 2. Nc3 {[%emt 0:00:09]} Nc6 {[%emt 0:00:16]} 3. g3 {[%emt 0:00:10]} g6 {[%emt 0:00:25]} 4. Bg2 {[%emt 0:00:07]} Bg7 {[%emt 0:00:05]} 5. d3 {[%emt 0:00:29]} d6 {[%emt 0:00:16]} 6. Rb1 {[%emt 0:00:20]} Nge7 {[%emt 0:01:17]} 7. Nf3 {[%emt 0:00:18]} O-O {[%emt 0:01:45]} 8. O-O {[%emt 0:00:46]} h6 {[%emt 0:02:10]} 9. b4 {[%emt 0:00:10]} Be6 {[%emt 0:02:46]} 10. b5 {[%emt 0:00:50]} Nd4 {[%emt 0:01:53]} 11. e3 {[%emt 0:03:55]} Nxf3+ {[%emt 0:03:01]} 12. Qxf3 {[%emt 0:00:23]} Rb8 {[%emt 0:02:05]} 13. Ba3 {[%emt 0:00:46]} Qd7 {[%emt 0:06:07]} 14. Qe2 {[%emt 0:00:41]} c6 {[%emt 0:03:48]} 15. Ne4 {[%emt 0:04:40]} c5 {[%emt 0:01:47]} 16. d4 {[%emt 0:05:18]} f5 {[%emt 0:05:02]} 17. dxc5 {[%emt 0:09:08]} fxe4 {[%emt 0:03:33]} 18. cxd6 {[%emt 0:00:18]} Nf5 {[%emt 0:06:57]} 19. Bxe4 {[%emt 0:02:08]} Qf7 {[%emt 0:02:04]} 20. Rbc1 {[%emt 0:04:34]} Rfd8 {[%emt 0:05:13]} 21. Rfd1 {[%emt 0:01:10]} b6 {[%emt 0:03:24]} 22. g4 {[%emt 0:08:58]} Nh4 {[%emt 0:00:55]} 23. Bb2 {[%emt 0:05:16]} Rbc8 {[%emt 0:02:28]} 24. Bc6 {[%emt 0:00:11]} Bd7 {[%emt 0:02:14]} 25. Bd5 {[%emt 0:28:06]} Be6 {[%emt 0:00:07]} 26. Bc6 {[%emt 0:04:38]} Bd7 {[%emt 0:00:07]} 27. Bd5 {[%emt 0:11:25]} Be6 {[%emt 0:00:05]} 28. Bc6 {[%emt 0:03:11]} Bd7 {[%emt 0:00:09]} 1/2-1/2

[Event "XIII Mediterranean Championship 2023"]
[Site "Castell-Platja d Aro"]
[Date "2023.11.08"]
[Round "6.22"]
[White "Vinas Racionero, Josep"]
[Black "Andreu Lopez, Santiago"]
[Result "0-1"]
[ECO "B07"]
[WhiteElo "2075"]
[BlackElo "1834"]
[Annotator "NA RC"]
[PlyCount "46"]
[EventDate "2023.10.26"]
[EventType "swiss"]
[EventCountry "ESP"]
[SourceTitle "playchess.com"]
[Source "ChessBase"]
[SourceQuality "1"]
[TimeControl "5400+30"]

1. e4 {[%emt 0:02:33]} g6 {[%emt 0:00:08]} 2. d4 {[%emt 0:01:10]} Bg7 {[%emt 1:31:22]} 3. Be3 {[%emt 0:04:47]} d6 {[%emt 0:00:00]} 4. Nc3 {[%emt 0:01:12]} Nf6 {[%emt 0:00:00]} 5. f3 {[%emt 1:23:18]} c6 {[%emt 0:00:00]} 6. Qd2 {[%emt 0:00:00]} Qa5 {[%emt 0:02:00]} 7. Bc4 {[%emt 0:00:00]} b5 {[%emt 0:00:00]} 8. Bb3 {[%emt 0:00:00]} Qc7 {[%emt 0:01:00]} 9. Nge2 {[%emt 0:00:00]} a5 {[%emt 0:00:30]} 10. a3 {[%emt 0:00:00]} Nbd7 {[%emt 0:00:00]} 11. O-O {[%emt 0:00:00]} Ba6 {[%emt 0:00:00]} 12. Kh1 {[%emt 0:00:00]} O-O {[%emt 0:01:30]} 13. Rfe1 {[%emt 0:00:00]} b4 {[%emt 0:00:30]} 14. axb4 {[%emt 0:00:00]} axb4 {[%emt 0:00:30]} 15. Na4 {[%emt 0:05:00]} c5 {[%emt 0:00:30]} 16. dxc5 {[%emt 0:00:30]} dxc5 {[%emt 0:00:30]} 17. e5 {[%emt 0:00:30]} Qxe5 {[%emt 0:00:00]} 18. Bf4 {[%emt 0:00:00]} Qh5 {[%emt 0:01:00]} 19. g4 {[%emt 0:01:00]} Nxg4 {[%emt 0:00:00]} 20. fxg4 {[%emt 0:00:00]} Bb7+ {[%emt 0:01:00]} 21. Kg1 {[%emt 0:01:00]} Qxg4+ {[%emt 0:00:00]} 22. Bg3 {[%emt 0:00:30]} Qf3 {[%emt 0:01:00]} 23. Nf4 {[%emt 0:00:00]} Bd4+ {[%emt 0:00:30]} 0-1

[Event "XIII Mediterranean Championship 2023"]
[Site "Castell-Platja d Aro"]
[Date "2023.11.08"]
[Round "6.23"]
[White "Garcia Paolicchi, Raul"]
[Black "Vidal Palou, Jordi"]
[Result "1-0"]
[ECO "D37"]
[WhiteElo "2051"]
[BlackElo "1620"]
[Annotator "NA RC"]
[PlyCount "75"]
[EventDate "2023.10.26"]
[EventType "swiss"]
[EventCountry "ESP"]
[SourceTitle "playchess.com"]
[Source "ChessBase"]
[SourceQuality "1"]
[TimeControl "5400+30"]

1. d4 {[%emt 0:00:03]} d5 {[%emt 0:00:23]} 2. c4 {[%emt 0:00:20]} e6 {[%emt 0:00:13]} 3. Nf3 {[%emt 0:00:17]} Nf6 {[%emt 0:00:08]} 4. Nc3 {[%emt 0:00:09]} Be7 {[%emt 0:00:17]} 5. Bf4 {[%emt 0:00:15]} O-O {[%emt 0:00:22]} 6. e3 {[%emt 0:00:13]} Bd6 {[%emt 0:00:49]} 7. c5 {[%emt 0:04:03]} Bxf4 {[%emt 0:00:18]} 8. exf4 {[%emt 0:00:07]} b6 {[%emt 0:00:14]} 9. b4 {[%emt 0:00:22]} bxc5 {[%emt 0:00:28]} 10. bxc5 {[%emt 0:00:09]} Ba6 {[%emt 0:00:07]} 11. Bxa6 {[%emt 0:05:32]} Nxa6 {[%emt 0:00:11]} 12. O-O {[%emt 0:01:36]} c6 {[%emt 0:03:37]} 13. Qa4 {[%emt 0:01:27]} Nb8 {[%emt 0:00:14]} 14. Ne5 {[%emt 0:02:05]} Qc7 {[%emt 0:00:13]} 15. Rfe1 {[%emt 0:08:14]} Nfd7 {[%emt 0:00:21]} 16. Re3 {[%emt 0:00:47]} Nxe5 {[%emt 0:02:31]} 17. fxe5 {[%emt 0:00:07]} f5 {[%emt 0:00:10]} 18. exf6 {[%emt 0:01:19]} Rxf6 {[%emt 0:00:16]} 19. Rae1 {[%emt 0:02:27]} Kf7 {[%emt 0:02:56]} 20. Qd1 {[%emt 0:05:46]} Nd7 {[%emt 0:03:00]} 21. Qh5+ {[%emt 0:02:11]} Kg8 {[%emt 0:00:18]} 22. Rxe6 {[%emt 0:07:12]} Rxe6 {[%emt 0:00:12]} 23. Rxe6 {[%emt 0:00:09]} Nf6 {[%emt 0:00:09]} 24. Qe2 {[%emt 0:02:36]} Qa5 {[%emt 0:00:58]} 25. Qe3 {[%emt 0:01:35]} h6 {[%emt 0:03:46]} 26. h3 {[%emt 0:00:50]} Rc8 {[%emt 0:01:05]} 27. g3 {[%emt 0:10:05]} Qd8 {[%emt 0:00:34]} 28. Kg2 {[%emt 0:03:05]} a5 {[%emt 0:00:26]} 29. Qe5 {[%emt 0:02:09]} Qf8 {[%emt 0:00:56]} 30. f4 {[%emt 0:07:55]} Rb8 {[%emt 0:00:29]} 31. Rxc6 {[%emt 0:02:19]} Rb2+ {[%emt 0:00:19]} 32. Kf3 {[%emt 0:00:29]} Rc2 {[%emt 0:00:41]} 33. Nxd5 {[%emt 0:01:20]} Nxd5 {[%emt 0:01:16]} 34. Qxd5+ {[%emt 0:00:18]} Kh8 {[%emt 0:00:10]} 35. Qe6 {[%emt 0:03:23]} Qa8 {[%emt 0:00:58]} 36. Kg4 {[%emt 0:00:49]} h5+ {[%emt 0:00:56]} 37. Kxh5 {[%emt 0:01:08]} g6+ {[%emt 0:00:42]} 38. Kg4 {[%emt 0:26:39]} 1-0

[Event "XIII Mediterranean Championship 2023"]
[Site "Castell-Platja d Aro"]
[Date "2023.11.08"]
[Round "6.24"]
[White "Vidal Traves, Marti"]
[Black "Alonso Gimenez, Mauro"]
[Result "0-1"]
[ECO "A40"]
[WhiteElo "1631"]
[BlackElo "1978"]
[Annotator "NA RC"]
[PlyCount "94"]
[EventDate "2023.10.26"]
[EventType "swiss"]
[EventCountry "ESP"]
[SourceTitle "playchess.com"]
[Source "ChessBase"]
[SourceQuality "1"]
[TimeControl "5400+30"]

1. d4 {[%emt 0:04:52]} e5 {[%emt 0:00:12]} 2. dxe5 {[%emt 0:00:07]} d6 {[%emt 0:00:05]} 3. Nf3 {[%emt 0:00:44]} Nc6 {[%emt 0:00:09]} 4. Bg5 {[%emt 0:01:02]} Be7 {[%emt 0:00:14]} 5. Bxe7 {[%emt 0:00:18]} Ngxe7 {[%emt 0:00:04]} 6. exd6 {[%emt 0:01:32]} cxd6 {[%emt 0:00:08]} 7. e4 {[%emt 0:03:13]} Qb6 {[%emt 0:03:30]} 8. b3 {[%emt 0:04:52]} Bg4 {[%emt 0:05:37]} 9. Be2 {[%emt 0:02:24]} O-O-O {[%emt 0:05:04]} 10. c4 {[%emt 0:07:54]} f5 {[%emt 0:03:25]} 11. Nfd2 {[%emt 0:14:45]} Bxe2 {[%emt 0:01:51]} 12. Qxe2 {[%emt 0:00:25]} Qd4 {[%emt 0:01:12]} 13. Nc3 {[%emt 0:03:09]} Qxc3 {[%emt 0:00:10]} 14. O-O {[%emt 0:00:08]} Nd4 {[%emt 0:02:55]} 15. Qd1 {[%emt 0:01:08]} Qd3 {[%emt 0:03:08]} 16. Nf3 {[%emt 0:09:38]} Nxf3+ {[%emt 0:01:00]} 17. Qxf3 {[%emt 0:01:08]} Qxf3 {[%emt 0:00:15]} 18. gxf3 {[%emt 0:00:35]} Rhe8 {[%emt 0:00:26]} 19. Rad1 {[%emt 0:00:48]} Ng6 {[%emt 0:01:11]} 20. Rfe1 {[%emt 0:01:37]} Nh4 {[%emt 0:00:07]} 21. Re3 {[%emt 0:00:29]} f4 {[%emt 0:01:47]} 22. Red3 {[%emt 0:00:46]} Re6 {[%emt 0:00:09]} 23. c5 {[%emt 0:04:54]} Kc7 {[%emt 0:00:04]} 24. Kf1 {[%emt 0:00:45]} Ng6 {[%emt 0:01:03]} 25. Ke2 {[%emt 0:05:07]} Ne5 {[%emt 0:00:52]} 26. Rd5 {[%emt 0:00:52]} Nc6 {[%emt 0:01:41]} 27. Rh5 {[%emt 0:03:01]} h6 {[%emt 0:00:32]} 28. Rf5 {[%emt 0:02:16]} g5 {[%emt 0:00:22]} 29. h4 {[%emt 0:01:48]} dxc5 {[%emt 0:00:23]} 30. Rxd8 {[%emt 0:00:22]} Kxd8 {[%emt 0:00:07]} 31. Rxc5 {[%emt 0:00:43]} Re5 {[%emt 0:00:07]} 32. Rc1 {[%emt 0:00:32]} gxh4 {[%emt 0:00:06]} 33. Rd1+ {[%emt 0:02:12]} Kc7 {[%emt 0:00:22]} 34. Kf1 {[%emt 0:00:21]} Rg5 {[%emt 0:00:16]} 35. Ke2 {[%emt 0:00:33]} h3 {[%emt 1:09:26]} 36. Kd3 {[%emt 0:00:28]} h2 {[%emt 0:00:00]} 37. Rh1 {[%emt 0:23:32]} Rg2 {[%emt 0:00:00]} 38. Ke2 {[%emt 0:00:00]} Nd4+ {[%emt 0:00:00]} 39. Kf1 {[%emt 0:00:00]} Rg1+ {[%emt 0:00:00]} 40. Rxg1 {[%emt 0:00:00]} hxg1=Q+ {[%emt 0:00:00]} 41. Kxg1 {[%emt 0:02:00]} Nxf3+ {[%emt 0:03:00]} 42. Kg2 {[%emt 0:00:30]} Ne5 {[%emt 0:00:30]} 43. Kh3 {[%emt 0:00:00]} Kd6 {[%emt 0:00:00]} 44. Kh4 {[%emt 0:00:00]} Nf7 {[%emt 0:00:00]} 45. Kh5 {[%emt 0:00:00]} Ke5 {[%emt 0:00:00]} 46. f3 {[%emt 0:00:00]} Nd6 {[%emt 0:00:00]} 47. Kxh6 {[%emt 0:00:00]} Nxe4 {[%emt 0:00:00]} 0-1